[Event "Runavik Open 2018"]
[Site "Runavik"]
[Date "2018.11.17"]
[Round "8"]
[White "Nielsen, Jon I Horni"]
[Black "Apol, Luitjen Akselsson"]
[Result "1/2-1/2"]
[ECO "B90"]
[WhiteElo "1710"]
[BlackElo "1735"]
[Annotator "NA RC"]
[PlyCount "126"]
[EventDate "2018.11.12"]
[EventType "swiss"]
[EventCountry "FAI"]
[SourceTitle "playchess.com"]
[Source "ChessBase"]
[SourceQuality "1"]
[TimeControl "40/5400+30:900+30"]

1. e4 {[%emt 0:00:00]} c5 {[%emt 0:00:00]} 2. Nf3 {[%emt 0:00:35]} d6 {[%emt 0:00:18]} 3. d4 {[%emt 0:02:02]} cxd4 {[%emt 0:00:29]} 4. Nxd4 {[%emt 0:01:19]} Nf6 {[%emt 0:00:31]} 5. Nc3 {[%emt 0:00:42]} a6 {[%emt 0:00:48]} 6. Be3 {[%emt 0:01:07]} e5 {[%emt 0:00:58]} 7. Nb3 {[%emt 0:02:28]} Be6 {[%emt 0:00:46]} 8. f3 {[%emt 0:00:50]} b5 {[%emt 0:00:32]} 9. Qd2 {[%emt 0:01:39]} Nbd7 {[%emt 0:00:40]} 10. O-O-O {[%emt 0:01:27]} Nb6 {[%emt 0:00:59]} 11. Kb1 {[%emt 0:00:19]} Be7 {[%emt 0:01:31]} 12. g4 {[%emt 0:01:58]} Rc8 {[%emt 0:05:51]} 13. h4 {[%emt 0:03:19]} Nfd7 {[%emt 0:03:34]} 14. g5 {[%emt 0:02:24]} O-O {[%emt 0:04:19]} 15. Be2 {[%emt 0:02:32]} f5 {[%emt 0:09:15]} 16. gxf6 {[%emt 0:04:46]} Nxf6 {[%emt 0:00:18]} 17. Rdg1 {[%emt 0:01:41]} d5 {[%emt 0:11:16]} 18. Bxb6 {[%emt 0:01:34]} Qxb6 {[%emt 0:00:37]} 19. exd5 {[%emt 0:00:10]} Bd7 {[%emt 0:07:30]} 20. h5 {[%emt 0:03:33]} Nxh5 {[%emt 0:09:08]} 21. Bd3 {[%emt 0:07:54]} Be8 {[%emt 0:07:38]} 22. Qg2 {[%emt 0:02:46]} Bf6 {[%emt 0:00:58]} 23. Qg4 {[%emt 0:03:10]} Rc7 {[%emt 0:05:46]} 24. Rg2 {[%emt 0:02:04]} Qd6 {[%emt 0:09:42]} 25. Rxh5 {[%emt 0:04:03]} Bxh5 {[%emt 0:00:11]} 26. Qxh5 {[%emt 0:00:06]} g6 {[%emt 0:00:15]} 27. a3 {[%emt 0:05:24]} Bg7 {[%emt 0:02:13]} 28. Qg4 {[%emt 0:01:48]} Rf4 {[%emt 0:01:11]} 29. Qh3 {[%emt 0:02:17]} Qe7 {[%emt 0:11:20]} 30. Be4 {[%emt 0:01:39]} Qh4 {[%emt 0:04:13]} 31. Qxh4 {[%emt 0:01:06]} Rxh4 {[%emt 0:00:00]} 32. Rd2 {[%emt 0:00:16]} Bf8 {[%emt 0:00:32]} 33. d6 {[%emt 0:04:04]} Rd7 {[%emt 0:00:11]} 34. Nc5 {[%emt 0:00:10]} Rxd6 {[%emt 0:00:33]} 35. Rxd6 {[%emt 0:00:02]} Bxd6 {[%emt 0:00:01]} 36. Nxa6 {[%emt 0:00:16]} b4 {[%emt 0:00:41]} 37. axb4 {[%emt 0:00:15]} g5 {[%emt 0:00:30]} 38. Nd5 {[%emt 0:00:14]} h5 {[%emt 0:01:26]} 39. c4 {[%emt 0:00:28]} g4 {[%emt 0:01:09]} 40. fxg4 {[%emt 0:00:00]} hxg4 {[%emt 0:00:00]} 41. Ne3 {[%emt 0:02:41]} g3 {[%emt 0:01:07]} 42. Bd5+ {[%emt 0:00:06]} Kf8 {[%emt 0:00:48]} 43. Nf5 {[%emt 0:00:02]} Rg4 {[%emt 0:00:19]} 44. Nxd6 {[%emt 0:00:13]} e4 {[%emt 0:00:32]} 45. Bxe4 {[%emt 0:01:54]} Rxe4 {[%emt 0:00:08]} 46. Nxe4 {[%emt 0:00:05]} g2 {[%emt 0:00:07]} 47. Ka2 {[%emt 0:01:27]} g1=Q {[%emt 0:01:30]} 48. Nac5 {[%emt 0:01:16]} Qe3 {[%emt 0:04:46]} 49. b3 {[%emt 0:00:27]} Qe1 {[%emt 0:01:02]} 50. b5 {[%emt 0:00:26]} Qb4 {[%emt 0:01:32]} 51. Na4 {[%emt 0:00:52]} Ke7 {[%emt 0:08:10]} 52. b6 {[%emt 0:00:29]} Ke6 {[%emt 0:02:17]} 53. b7 {[%emt 0:00:31]} Kd7 {[%emt 0:00:33]} 54. Nac5+ {[%emt 0:00:09]} Kc6 {[%emt 0:00:31]} 55. Kb2 {[%emt 0:00:24]} Qb6 {[%emt 0:00:23]} 56. Kc3 {[%emt 0:01:05]} Qa5+ {[%emt 0:00:16]} 57. Kb2 {[%emt 0:01:17]} Qb6 {[%emt 0:00:17]} 58. Nf6 {[%emt 0:00:31]} Qc7 {[%emt 0:01:16]} 59. Nfd7 {[%emt 0:00:12]} Qh2+ {[%emt 0:00:29]} 60. Ka3 {[%emt 0:00:06]} Qh8 {[%emt 0:00:34]} 61. b8=Q {[%emt 0:00:09]} Qa1+ {[%emt 0:00:13]} 62. Kb4 {[%emt 0:01:19]} Qe1+ {[%emt 0:00:11]} 63. Ka4 {[%emt 0:00:15]} Qe6 1/2-1/2

[Event "Runavik Open 2018"]
[Site "Runavik"]
[Date "2018.11.17"]
[Round "8"]
[White "Tummasarson, Flovin M."]
[Black "Nielsen, Suni I Horni"]
[Result "1-0"]
[ECO "C50"]
[WhiteElo "1378"]
[BlackElo "1563"]
[Annotator "NA"]
[PlyCount "111"]
[EventDate "2018.11.12"]
[EventType "swiss"]
[EventCountry "FAI"]
[SourceTitle "playchess.com"]
[Source "ChessBase"]
[SourceQuality "1"]
[TimeControl "40/5400+30:900+30"]

1. e4 {[%emt 0:00:00]} e5 {[%emt 0:00:00]} 2. Nf3 {[%emt 0:00:00]} Nc6 {[%emt 0:00:18]} 3. Bc4 {[%emt 0:00:13]} Bc5 {[%emt 0:01:53]} 4. d3 {[%emt 0:02:29]} h6 {[%emt 0:01:02]} 5. Nc3 {[%emt 0:01:08]} d6 {[%emt 0:00:51]} 6. Be3 {[%emt 0:00:25]} Bb6 {[%emt 0:00:05]} 7. Qd2 {[%emt 0:00:48]} Nf6 {[%emt 0:00:15]} 8. h3 {[%emt 0:00:58]} Be6 {[%emt 0:01:33]} 9. Bxe6 {[%emt 0:00:15]} fxe6 {[%emt 0:00:10]} 10. O-O-O {[%emt 0:00:28]} d5 {[%emt 0:00:44]} 11. Bxb6 {[%emt 0:02:28]} axb6 {[%emt 0:00:05]} 12. Kb1 {[%emt 0:00:27]} d4 {[%emt 0:00:58]} 13. Ne2 {[%emt 0:02:46]} Qd6 {[%emt 0:01:26]} 14. g4 {[%emt 0:01:55]} Ra5 {[%emt 0:05:38]} 15. g5 {[%emt 0:01:37]} hxg5 {[%emt 0:00:17]} 16. Qxg5 {[%emt 0:00:14]} Qe7 {[%emt 0:00:15]} 17. Rdg1 {[%emt 0:04:31]} Rg8 {[%emt 0:00:30]} 18. Rg3 {[%emt 0:00:30]} Qc5 {[%emt 0:00:30]} 19. Nc1 {[%emt 0:00:30]} Nb4 {[%emt 0:00:30]} 20. Qd2 {[%emt 0:00:30]} Qb5 {[%emt 0:00:30]} 21. Rg5 Nd7 {[%emt 0:11:10]} 22. Nxd4 {[%emt 0:08:11]} Qa4 {[%emt 0:00:30]} 23. Ndb3 {[%emt 0:03:10]} Ra6 {[%emt 0:00:29]} 24. a3 {[%emt 0:01:11]} Nc6 {[%emt 0:00:51]} 25. f4 {[%emt 0:03:23]} Nd4 {[%emt 0:00:42]} 26. Nxd4 {[%emt 0:04:43]} Qxd4 {[%emt 0:00:10]} 27. Nb3 {[%emt 0:00:31]} Qd6 {[%emt 0:00:33]} 28. Rhg1 {[%emt 0:00:57]} exf4 {[%emt 0:00:52]} 29. Rxg7 {[%emt 0:00:16]} Rxg7 {[%emt 0:00:04]} 30. Rxg7 {[%emt 0:00:10]} Qe5 {[%emt 0:02:39]} 31. Rg4 {[%emt 0:01:00]} f3 {[%emt 0:02:40]} 32. Qf4 {[%emt 0:00:33]} Qxf4 {[%emt 0:00:24]} 33. Rxf4 {[%emt 0:00:05]} e5 {[%emt 0:00:06]} 34. Rxf3 {[%emt 0:00:06]} b5 {[%emt 0:00:08]} 35. Rf5 {[%emt 0:01:23]} Re6 {[%emt 0:00:53]} 36. Nd2 {[%emt 0:00:57]} Ke7 {[%emt 0:00:58]} 37. h4 {[%emt 0:06:54]} Rh6 {[%emt 0:00:18]} 38. Nf3 {[%emt 0:02:10]} Kd6 {[%emt 0:00:19]} 39. Ka2 {[%emt 0:02:39]} c5 {[%emt 0:00:36]} 40. b4 {[%emt 0:00:00]} b6 {[%emt 0:00:00]} 41. Kb3 {[%emt 0:04:30]} Rh7 {[%emt 0:03:18]} 42. h5 {[%emt 0:00:49]} Rh6 {[%emt 0:00:38]} 43. Rg5 {[%emt 0:01:31]} Nf8 {[%emt 0:03:31]} 44. Nxe5 {[%emt 0:01:07]} Ke6 {[%emt 0:00:16]} 45. Ng4 {[%emt 0:00:49]} Rh7 {[%emt 0:00:19]} 46. bxc5 {[%emt 0:01:22]} bxc5 {[%emt 0:00:10]} 47. c4 {[%emt 0:04:10]} Rb7 {[%emt 0:00:19]} 48. Rxc5 {[%emt 0:00:41]} bxc4+ {[%emt 0:00:15]} 49. Kxc4 {[%emt 0:00:08]} Nd7 {[%emt 0:00:16]} 50. Rb5 {[%emt 0:00:52]} Rc7+ {[%emt 0:00:10]} 51. Kb3 {[%emt 0:01:06]} Nc5+ {[%emt 0:00:17]} 52. Kc4 {[%emt 0:02:48]} Nxe4+ {[%emt 0:00:15]} 53. Kd4 {[%emt 0:00:08]} Ng3 {[%emt 0:00:40]} 54. Rb6+ {[%emt 0:01:46]} Kf7 {[%emt 0:00:22]} 55. Ne5+ {[%emt 0:01:29]} Kg7 {[%emt 0:00:11]} 56. Rg6+ {[%emt 0:00:07]} 1-0

[Event "Runavik Open 2018"]
[Site "Runavik"]
[Date "2018.11.17"]
[Round "8"]
[White "Fjallheim, Benjamin Reinert"]
[Black "Skaale, Janus"]
[Result "0-1"]
[ECO "B76"]
[WhiteElo "1340"]
[BlackElo "1839"]
[Annotator "NA"]
[PlyCount "38"]
[EventDate "2018.11.12"]
[EventType "swiss"]
[EventCountry "FAI"]
[SourceTitle "playchess.com"]
[Source "ChessBase"]
[SourceQuality "1"]
[TimeControl "40/5400+30:900+30"]

1. e4 {[%emt 0:00:00]} c5 {[%emt 0:00:00]} 2. Nf3 {[%emt 0:00:06]} d6 {[%emt 0:00:00]} 3. d4 {[%emt 0:00:06]} cxd4 {[%emt 0:00:00]} 4. Nxd4 {[%emt 0:00:07]} Nf6 {[%emt 0:00:19]} 5. Nc3 {[%emt 0:00:11]} g6 {[%emt 0:00:11]} 6. f3 {[%emt 0:00:40]} Bg7 {[%emt 0:00:25]} 7. Be3 {[%emt 0:00:15]} Nc6 {[%emt 0:00:08]} 8. Qd2 {[%emt 0:00:34]} O-O {[%emt 0:07:54]} 9. O-O-O {[%emt 0:01:51]} d5 {[%emt 0:09:18]} 10. Nxc6 {[%emt 0:08:37]} bxc6 {[%emt 0:00:17]} 11. Bh6 {[%emt 0:00:37]} Bxh6 {[%emt 0:02:51]} 12. Qxh6 {[%emt 0:07:59]} Qa5 {[%emt 0:00:39]} 13. exd5 {[%emt 0:05:09]} cxd5 {[%emt 0:00:29]} 14. h4 {[%emt 0:04:35]} Rd8 {[%emt 0:09:29]} 15. Kb1 {[%emt 0:03:14]} Be6 {[%emt 0:02:54]} 16. Rd4 {[%emt 0:00:41]} Rdc8 {[%emt 0:04:19]} 17. Qe3 {[%emt 0:05:11]} Rab8 {[%emt 0:02:03]} 18. Ka1 {[%emt 0:03:14]} Bf5 {[%emt 0:11:07]} 19. Ra4 {[%emt 0:23:19]} Rxc3 {[%emt 0:01:29]} 0-1

[Event "Runavik Open 2018"]
[Site "Runavik"]
[Date "2018.11.17"]
[Round "8"]
[White "Petersen, Elias"]
[Black "Fjallheim, Leif Reinert"]
[Result "0-1"]
[ECO "C50"]
[WhiteElo "1045"]
[BlackElo "1919"]
[Annotator "NA"]
[PlyCount "34"]
[EventDate "2018.11.12"]
[EventType "swiss"]
[EventCountry "FAI"]
[SourceTitle "playchess.com"]
[Source "ChessBase"]
[SourceQuality "1"]
[TimeControl "40/5400+30:900+30"]

1. e4 {[%emt 0:00:00]} e5 {[%emt 0:00:00]} 2. Nf3 {[%emt 0:00:00]} Nc6 {[%emt 0:00:00]} 3. Bc4 {[%emt 0:00:46]} Bc5 {[%emt 0:00:04]} 4. O-O {[%emt 0:00:22]} d6 {[%emt 0:00:34]} 5. h3 {[%emt 0:01:06]} Nf6 {[%emt 0:00:41]} 6. d3 {[%emt 0:02:09]} h6 {[%emt 0:00:21]} 7. a3 {[%emt 0:01:17]} g5 {[%emt 0:01:28]} 8. Kh2 {[%emt 0:01:40]} g4 {[%emt 0:01:44]} 9. Ne1 {[%emt 0:01:01]} gxh3 {[%emt 0:12:34]} 10. gxh3 {[%emt 0:08:51]} Ng4+ {[%emt 0:04:50]} 11. hxg4 {[%emt 0:01:27]} Qh4+ {[%emt 0:00:17]} 12. Kg1 {[%emt 0:00:16]} Qg3+ {[%emt 0:03:44]} 13. Kh1 {[%emt 0:00:14]} Qh3+ {[%emt 0:00:10]} 14. Kg1 {[%emt 0:00:21]} Bxg4 {[%emt 0:00:29]} 15. Qd2 {[%emt 0:00:45]} Qg3+ {[%emt 0:05:08]} 16. Ng2 {[%emt 0:00:37]} Bf3 {[%emt 0:00:41]} 17. a4 {[%emt 0:01:32]} Qxg2# {[%emt 0:00:17]} 0-1

[Event "Runavik Open 2018"]
[Site "Runavik"]
[Date "2018.11.18"]
[Round "9"]
[White "Fjallheim, Leif Reinert"]
[Black "Nielsen, Jon I Horni"]
[Result "0-1"]
[ECO "C70"]
[WhiteElo "1919"]
[BlackElo "1710"]
[Annotator "NA RC"]
[PlyCount "122"]
[EventDate "2018.11.12"]
[EventType "swiss"]
[EventCountry "FAI"]
[SourceTitle "playchess.com"]
[Source "ChessBase"]
[SourceQuality "1"]
[TimeControl "40/5400+30:900+30"]

1. e4 {[%emt 0:00:04]} e5 {[%emt 0:00:13]} 2. Nf3 {[%emt 0:00:14]} Nc6 {[%emt 0:01:10]} 3. Bb5 {[%emt 0:00:41]} a6 {[%emt 0:02:07]} 4. Ba4 {[%emt 0:00:07]} b5 {[%emt 0:01:41]} 5. Bb3 {[%emt 0:00:09]} Nf6 {[%emt 0:01:37]} 6. Qe2 {[%emt 0:00:49]} Bc5 {[%emt 0:01:59]} 7. c3 {[%emt 0:01:39]} d6 {[%emt 0:00:31]} 8. d3 {[%emt 0:02:00]} h6 {[%emt 0:02:53]} 9. O-O {[%emt 0:02:19] LiveBook: 11 Games} O-O {[%emt 0:03:15]} 10. h3 {[%emt 0:01:11] C77: Ruy Lopez: 3...a6 4 Ba4 Nf6, unusual lines} Be6 {[%emt 0:05:15]} 11. Bc2 {[%emt 0:01:46]} Re8 {[%emt 0:04:37]} 12. Rd1 {[%emt 0:02:57]} d5 {[%emt 0:08:53]} (12... Bb6 13. Nbd2 d5 14. Nf1 Qd7 15. Kh2 Rad8 {1-0 (36) Bortnyk,O (2610)-Sargissian,G (2672) Riadh 2017}) 13. Nbd2 {[%emt 0:04:14]} d4 {[%emt 0:02:59]} 14. Nf1 $146 {[%emt 0:04:06]} ({Predecessor:} 14. c4 Nd7 15. a3 Bf8 16. b4 Qb8 17. Rb1 {½-½ (55) Ahmadzada,A (2025)-Drenchev,P (2465) Varna 2015}) 14... Qd7 {[%emt 0:07:27]} 15. Ng3 {[%emt 0:13:10]} Rad8 {[%emt 0:07:48]} 16. Bd2 {[%emt 0:11:27]} Nh7 {[%emt 0:07:46]} 17. cxd4 {[%emt 0:08:10]} Nxd4 {[%emt 0:01:08]} 18. Nxd4 {[%emt 0:00:07]} Bxd4 {[%emt 0:00:47]} 19. Bc3 {[%emt 0:00:42]} c5 {[%emt 0:07:47]} 20. Bb3 {[%emt 0:05:08]} g6 {[%emt 0:05:50]} 21. Bxd4 {[%emt 0:05:19]} Qxd4 {[%emt 0:01:38]} 22. Qc2 {[%emt 0:04:49]} Nf6 {[%emt 0:07:13]} 23. Ne2 {[%emt 0:03:06]} Qd6 {[%emt 0:03:34]} 24. Bxe6 {[%emt 0:04:55]} Rxe6 {[%emt 0:01:17]} 25. Rac1 {[%emt 0:01:31]} Nd7 {[%emt 0:03:58]} 26. Qd2 {[%emt 0:00:57]} Kh7 {[%emt 0:01:08]} 27. Qe3 {[%emt 0:01:31]} Rf6 {[%emt 0:01:30]} 28. Rc2 {[%emt 0:03:13]} Rc8 {[%emt 0:03:58]} 29. Rdc1 {[%emt 0:01:09]} Qe6 {[%emt 0:03:32]} 30. b3 {[%emt 0:02:39]} Qe7 {[%emt 0:00:37]} 31. Nc3 {[%emt 0:01:36]} Rfc6 {[%emt 0:00:49]} 32. Nd5 {[%emt 0:01:04]} Qd6 {[%emt 0:00:26]} 33. Qf3 {[%emt 0:02:25]} Kg7 {[%emt 0:00:29]} 34. Qg3 {[%emt 0:02:09]} Nf6 {[%emt 0:00:31]} 35. Ne3 {[%emt 0:01:26]} Kh7 {[%emt 0:00:29]} 36. Rc3 {[%emt 0:03:11]} Nh5 {[%emt 0:00:34]} 37. Qf3 {[%emt 0:00:43]} Nf4 {[%emt 0:00:25]} 38. Kh2 {[%emt 0:04:48]} Kg7 {[%emt 0:00:34]} 39. Nc2 {[%emt 0:00:38]} b4 {[%emt 0:00:24]} 40. Rc4 {[%emt 0:00:00]} a5 {[%emt 0:00:00]} ({Much worse is} 40... Nxd3 $6 41. Rd1 $14) 41. Ne1 {[%emt 0:02:06]} Ne6 {[%emt 0:02:34]} 42. Qe3 {[%emt 0:01:43]} Nd4 {[%emt 0:02:06]} 43. Nf3 {[%emt 0:03:00]} f5 {[%emt 0:04:39]} 44. Kh1 {[%emt 0:02:34]} (44. Nxd4 $11 cxd4 45. Qe2) 44... f4 {[%emt 0:00:33]} 45. Qd2 {[%emt 0:00:27]} Nxf3 {[%emt 0:03:44]} 46. gxf3 {[%emt 0:00:01]} Kf6 {[%emt 0:02:51]} 47. Kg2 {[%emt 0:01:48]} Kg5 {[%emt 0:01:12]} 48. Qe2 {[%emt 0:03:28]} Kh4 {[%emt 0:00:30]} 49. Kh2 $17 {[%emt 0:01:44]} Qd7 {[%emt 0:01:42]} 50. Qf1 {[%emt 0:00:27]} g5 {[%emt 0:00:14]} 51. R4c2 {[%emt 0:03:32]} h5 {[%emt 0:00:54]} 52. Rd1 {[%emt 0:00:32]} g4 {[%emt 0:00:09]} 53. hxg4 {[%emt 0:01:24]} hxg4 {[%emt 0:00:06]} 54. Qg2 {[%emt 0:00:31]} Rg8 {[%emt 0:01:09]} 55. Rh1 {[%emt 0:00:27]} Kg5 {[%emt 0:00:45]} 56. Kg1 {[%emt 0:00:34]} Kf6 {[%emt 0:00:30]} 57. Rh6+ {[%emt 0:00:27]} Kf7 {[%emt 0:00:30]} 58. Rh7+ {[%emt 0:00:08]} Rg7 {[%emt 0:00:02]} 59. Rxg7+ {[%emt 0:00:06]} Kxg7 {[%emt 0:00:12]} 60. fxg4 {[%emt 0:01:01]} Qxd3 {[%emt 0:00:22]} 61. f3 {[%emt 0:00:43]} Qd1+ {[%emt 0:00:30]} 0-1

[Event "Runavik Open 2018"]
[Site "Runavik"]
[Date "2018.11.18"]
[Round "9"]
[White "Berg, Margar M."]
[Black "Hojgaard, Brandur"]
[Result "1-0"]
[ECO "A45"]
[WhiteElo "1852"]
[BlackElo "1708"]
[Annotator "NA RC"]
[PlyCount "59"]
[EventDate "2018.11.12"]
[EventType "swiss"]
[EventCountry "FAI"]
[SourceTitle "playchess.com"]
[Source "ChessBase"]
[SourceQuality "1"]
[TimeControl "40/5400+30:900+30"]

{[%evp 18,57,-47,-118,32767,-154,-116,-134,-116,-193,-84,-81,-64,-58,-31,-50,32767,32767,32767,-60,-65,-61,-67,-71,32767,32767,32767,32767,-69,-106,-98,-110,32767,32767,32767,32767,34,32767,128,141,444,439]} 1. d4 {[%emt 0:00:00]} Nf6 {[%emt 0:00:00]} 2. Bg5 {[%emt 0:00:00]} e6 {[%emt 0:01:16]} 3. e4 {[%emt 0:00:13]} h6 {[%emt 0:01:27]} 4. Bxf6 {[%emt 0:00:24]} Qxf6 {[%emt 0:00:46]} 5. e5 {[%emt 0:00:56]} Qd8 {[%emt 0:00:27]} 6. Bd3 {[%emt 0:00:27] A45: Trompowsky Attack} d5 {[%emt 0:01:01]} 7. Ne2 {[%emt 0:00:50]} c5 {[%emt 0:01:10]} 8. c3 {[%emt 0:00:40]} Nc6 {[%emt 0:00:37]} 9. O-O {[%emt 0:06:30]} Bd7 {[%emt 0:02:37]} 10. f4 $146 {[%emt 0:01:47]} ({Predecessor:} 10. Nd2 $15 Qb6 11. Nf3 cxd4 12. Nexd4 Nxd4 13. Nxd4 Qxb2 14. Rb1 Qxc3 15. Rxb7 Bc5 16. Bb5 Bxd4 17. Bxd7+ {1-0 (19) Bacallao Alonso,Y (2522)-Dvirnyy,D (2560) Havana 2014}) 10... Qb6 {[%emt 0:06:26]} 11. Qb3 {[%emt 0:06:16]} ({Better is} 11. Nd2 $15) 11... Qxb3 {[%emt 0:08:34]} 12. axb3 {[%emt 0:00:09]} cxd4 {[%emt 0:00:34]} 13. cxd4 {[%emt 0:04:33] [#]} Nb4 {[%emt 0:01:15]} (13... Nxd4 $1 $19 {[%mdl 512] and Black stays clearly on top.} 14. Nxd4 Bc5) 14. Rf3 {[%emt 0:01:37]} Nxd3 {[%emt 0:01:06]} 15. Rxd3 {[%emt 0:00:10]} Bb4 {[%emt 0:05:20]} 16. Nbc3 {[%emt 0:01:00]} Bc6 {[%emt 0:10:47]} 17. h3 {[%emt 0:11:29]} Kd7 {[%emt 0:01:28]} 18. Ng3 {[%emt 0:16:46]} g6 {[%emt 0:01:15]} 19. Nf1 {[%emt 0:00:23]} a5 {[%emt 0:07:30]} 20. Ne3 {[%emt 0:02:44]} Be7 {[%emt 0:07:00]} 21. g4 {[%emt 0:02:04]} b5 {[%emt 0:04:34]} 22. f5 {[%emt 0:11:22]} gxf5 {[%emt 0:07:13]} 23. gxf5 {[%emt 0:02:16]} Rhg8+ {[%emt 0:03:15]} 24. Kh2 {[%emt 0:00:26]} f6 {[%emt 0:04:44]} 25. Re1 {[%emt 0:13:29]} b4 {[%emt 0:05:05]} 26. fxe6+ {[%emt 0:02:38]} Kxe6 {[%emt 0:00:49]} 27. Ne2 {[%emt 0:04:54]} fxe5 {[%emt 0:07:47]} (27... Kd7 $1 $11) 28. dxe5 $16 {[%emt 0:00:53]} Kxe5 $2 {[%emt 0:02:16]} (28... Kd7 $16) 29. Nd4 {[%emt 0:00:54]} Bd6 {[%emt 0:01:00]} 30. Nef5+ {[%emt 0:00:45]} 1-0

[Event "Runavik Open 2018"]
[Site "Runavik"]
[Date "2018.11.18"]
[Round "9"]
[White "Skaale, Janus"]
[Black "Jacobsen, Heidrikur T."]
[Result "0-1"]
[ECO "C50"]
[WhiteElo "1839"]
[BlackElo "1935"]
[Annotator "NA"]
[PlyCount "78"]
[EventDate "2018.11.12"]
[EventType "swiss"]
[EventCountry "FAI"]
[SourceTitle "playchess.com"]
[Source "ChessBase"]
[SourceQuality "1"]
[TimeControl "40/5400+30:900+30"]

1. e4 {[%emt 0:00:00]} e5 {[%emt 0:00:00]} 2. Nf3 {[%emt 0:00:10]} Nc6 {[%emt 0:00:04]} 3. Bc4 {[%emt 0:00:33]} Nf6 {[%emt 0:00:53]} 4. d3 {[%emt 0:00:50]} Bc5 {[%emt 0:01:18]} 5. c3 {[%emt 0:00:16]} d6 {[%emt 0:00:54]} 6. Nbd2 {[%emt 0:02:16]} O-O {[%emt 0:01:07]} 7. O-O {[%emt 0:01:26]} Bb6 {[%emt 0:01:59]} 8. Bb3 {[%emt 0:02:56]} Ne7 {[%emt 0:01:07]} 9. Nc4 {[%emt 0:11:11] C54: Giuoco Piano: 4 c3 Nf6, main lines with 5 d4 and 5 d3} Ng6 {[%emt 0:01:52]} (9... Be6 10. Re1 h6 11. a3 Ng6 12. Bc2 Bg4 13. h3 Bh5 14. Be3 Nh4 15. Ncd2 Nh7 16. g4 Bg6 17. Nxh4 Qxh4 18. Kg2 Ng5 19. Rh1 f5 20. exf5 {½-½ (20) Zhigalko,S (2671)-Andreikin,D (2737) Tallinn 2016}) 10. Be3 {[%emt 0:01:54]} Bg4 $146 {[%emt 0:02:32]} ({Predecessor:} 10... h6 11. h3 Re8 12. Qd2 Bxe3 13. fxe3 c6 14. Qf2 d5 {½-½ (48) Cubas,J (2434)-Morovic Fernandez,I (2551) Asuncion 2009}) 11. h3 {[%emt 0:03:01]} Be6 {[%emt 0:01:36]} 12. Nxb6 {[%emt 0:08:34]} axb6 {[%emt 0:04:52]} 13. Qc2 {[%emt 0:11:54]} Qd7 {[%emt 0:08:57]} 14. Ng5 {[%emt 0:04:56]} Bxb3 {[%emt 0:01:03]} 15. Qxb3 {[%emt 0:01:18]} h6 {[%emt 0:01:30]} 16. Nf3 {[%emt 0:01:08]} Nh5 {[%emt 0:00:47]} 17. d4 {[%emt 0:05:27]} Rae8 {[%emt 0:03:31]} 18. dxe5 {[%emt 0:02:29]} dxe5 {[%emt 0:00:36]} 19. Qd5 {[%emt 0:01:07]} Qxd5 {[%emt 0:03:43]} 20. exd5 {[%emt 0:00:05]} f5 {[%emt 0:01:26]} 21. Rfd1 {[%emt 0:01:21]} f4 {[%emt 0:01:54]} 22. Bc1 {[%emt 0:01:19]} Nf6 {[%emt 0:02:16]} 23. c4 $1 {[%emt 0:03:12]} Ne4 {[%emt 0:01:55]} 24. Nd2 {[%emt 0:01:38]} (24. a4 $11) 24... Nxd2 {[%emt 0:01:18]} 25. Bxd2 {[%emt 0:00:08]} e4 {[%emt 0:00:48]} 26. Re1 {[%emt 0:01:02]} Nh4 {[%emt 0:07:48]} 27. Kh1 {[%emt 0:13:49]} g5 {[%emt 0:01:01]} 28. Rad1 {[%emt 0:03:29]} Nf5 $15 {[%emt 0:01:18]} 29. Bb4 {[%emt 0:01:08]} Rf6 {[%emt 0:01:43]} 30. a4 {[%emt 0:02:56]} e3 {[%emt 0:02:20]} 31. fxe3 {[%emt 0:00:41]} fxe3 {[%emt 0:01:10]} 32. g4 {[%emt 0:01:51]} Nh4 {[%emt 0:04:54]} 33. Bc3 {[%emt 0:02:57]} Rf2 {[%emt 0:01:51]} 34. Rd2 {[%emt 0:02:47]} Rxd2 {[%emt 0:01:25]} 35. Bxd2 {[%emt 0:00:11]} exd2 {[%emt 0:00:09]} 36. Rxe8+ {[%emt 0:00:57]} Kf7 {[%emt 0:00:09]} 37. Re2 {[%emt 0:00:32]} d1=Q+ {[%emt 0:00:10]} 38. Kh2 {[%emt 0:00:11]} Qxe2+ {[%emt 0:00:07]} 39. Kg3 {[%emt 0:00:11]} Qg2# {[%emt 0:00:10]} 0-1